fUST/lending_fUST_20240911
["ID","MTS","AMOUNT","RATE_DAILY","PERIOD"]
[337736868,1725999046241,-1322.342102,0.00039557,14]
[337736869,1725999046250,-1322.342102,0.00039557,14]
[337736870,1725999046259,-151.0,0.00039557,14]
[337736871,1725999046269,-151.0,0.00039557,14]
[337736872,1725999046278,-189.595591,0.00039557,14]
[337736873,1725999046286,-189.595591,0.00039557,14]
[337736874,1725999046296,-6775.9831087,0.00039558,31]
[337736875,1725999046305,-234.63379,0.00039558,14]
[337736876,1725999046314,-234.63379,0.00039558,14]
[337736877,1725999046323,-228.518158,0.00039558,14]
[337736878,1725999046332,-485.139077,0.00039558,14]
[337736879,1725999046341,-485.139077,0.00039558,14]
[337736880,1725999046351,-151.0,0.00039558,14]
[337736881,1725999046359,-151.0,0.00039558,14]
[337736882,1725999046369,-2701.52662338,0.00039558,14]
[337736883,1725999075597,166.666666,0.00035564,2]
[337737499,1725999958133,-177.26897,0.00017808,2]
[337737500,1725999958154,-296.46157368,0.0002,2]
[337737501,1725999958175,-296.46157355,0.00020036,2]
[337737502,1725999958194,-296.46157355,0.00020073,2]
[337737503,1725999958214,-548.59105545,0.000201,2]
[337737504,1725999958235,-296.46157355,0.00020109,2]
[337737505,1725999958255,-296.46157355,0.00020146,2]
[337737506,1725999958278,-296.46157355,0.00020182,2]
[337737507,1725999958302,-1247.215384,0.00020793,2]
[337737508,1725999958328,-3000.0,0.00021,2]
[337737509,1725999958348,-3000.0,0.0002101,2]
[337737510,1725999958369,-300.0,0.00021019,2]
[337737511,1725999958390,-3000.0,0.0002102,2]
[337737512,1725999958411,-3500.974817,0.0002103,2]
[337737513,1725999958433,-166.666666,0.00021918,2]
[337737514,1725999958456,-166.666666,0.00022431,2]
[337737515,1725999958480,-166.666666,0.00022944,2]
[337737516,1725999958503,-420.0,0.00023121,2]
[337737517,1725999958525,-166.666666,0.00023456,2]
[337737518,1725999958547,-166.666666,0.00023969,2]
[337737519,1725999958572,-177.26897,0.00024081,2]
[337737520,1725999958593,-166.666666,0.00024482,2]
[337737521,1725999958616,-380.0,0.00024658,2]
[337737522,1725999958639,-156.0,0.00025,2]
[337737523,1725999958660,-2500.0,0.00025228,3]
[337737524,1725999958682,-2500.0,0.00025237,3]
[337737525,1725999958702,-2500.0,0.00025245,3]
[337737526,1725999958723,-2500.0,0.00025254,3]
[337737527,1725999958746,-2500.0,0.00025263,3]
[337737528,1725999958767,-1773.34825057,0.00025263,3]
[337737529,1725999958789,-587.0,0.00025433,2]
[337737530,1725999958811,-823.0,0.00027976,2]
[337737531,1725999958833,-161.555281,0.00028682,2]
[337737532,1725999958854,-1143.02753125,0.00030067,2]
[337737533,1725999958875,-177.26897,0.00030353,2]
[337737534,1725999958896,-150.0,0.00030475,2]
[337737535,1725999958918,-523.0,0.00030475,2]
[337737536,1725999958940,-1056.0,0.00030774,2]
[337737537,1725999959277,-150.0,0.00033475,2]
[337737538,1725999959298,-523.0,0.00033475,2]
[337737539,1725999959325,-1143.02753125,0.0003497,2]
[337737540,1725999959346,-216.37,0.00035,120]
[337737541,1725999959368,-153.62,0.000354,31]
[337737542,1725999959392,-153.62,0.000354,31]
[337737543,1725999959412,-150.0,0.00036475,2]
[337737544,1725999959433,-523.0,0.00036475,2]
[337737545,1725999959453,-177.26897,0.00036626,2]
[337737546,1725999959477,-465.00000001,0.00036969,2]
[337737547,1725999959501,-600.0,0.00037584,7]
[337737548,1725999959523,-500.0,0.00037629,7]
[337737549,1725999959544,-2725.83731937,0.00037633,2]
[337737550,1725999959570,-153.07231703,0.00037864,23]
[337737551,1725999959594,-700.0,0.00037973,7]
[337737552,1725999959617,-500.0,0.0003805,7]
[337737553,1725999959642,-500.0,0.000381,7]
[337737554,1725999959667,-700.0,0.00038212,7]
[337737555,1725999959690,-382.50118413,0.0003825,7]
[337737559,1726000161129,-296.46157355,0.00020693,2]
[337737560,1726000161148,-9927.65621938,0.00021,5]
[337737561,1726000161168,-166.666666,0.00021918,2]
[337737562,1726000161188,-876.25,0.00022,2]
[337737563,1726000161209,-166.666666,0.00022431,2]
[337737564,1726000161232,-166.666666,0.00022944,2]
[337737565,1726000161255,-166.666666,0.00023456,2]
[337737566,1726000161276,-166.666666,0.00023969,2]
[337737567,1726000161296,-166.666666,0.00024482,2]
[337737568,1726000161315,-869.52077048,0.0002799,2]
[337737569,1726000161334,-2891.51036315,0.00035,2]
[337737570,1726000162817,157.572417,0.00017808,2]
[337737571,1726000163337,157.572417,0.00024819,2]
[337737572,1726000163706,157.572417,0.00031829,2]
[337737575,1726000222383,523.0,0.00030475,2]
[337737576,1726000222964,523.0,0.00033475,2]
[337737650,1726000238459,-3854.00045615,0.00037528,2]
[337737651,1726000238468,-1013.67341591,0.0003758,10]
[337737652,1726000238478,-465.28234888,0.00037628,7]
[337737714,1726000246087,-234.71765112,0.00037628,7]
[337737715,1726000246096,-700.0,0.00037714,7]
[337737716,1726000246105,-500.0,0.00037792,7]
[337737717,1726000246114,-298.62234888,0.00038,10]
[337737742,1726001207778,574.83869475,0.0001,2]
[337737743,1726001235130,-163.310797,0.00017808,2]
[337737744,1726001235154,-150.0,0.00021,2]
[337737745,1726001235175,-163.310797,0.00025257,2]
[337737746,1726001235196,-163.310797,0.00032705,2]
[337737747,1726001235218,-166.666666,0.00035068,2]
[337737748,1726001235241,-153.55,0.000354,31]
[337737749,1726001235263,-153.55,0.000354,31]
[337737750,1726001235286,-153.55,0.000354,31]
[337737751,1726001235308,-153.55,0.000354,31]
[337737752,1726001235329,-213.7090142,0.00035616,120]
[337737753,1726001235351,-207.2792049,0.0003562,2]
[337737754,1726001235371,-1261.968714,0.00035727,7]
[337737755,1726001235394,-163.449894,0.00035877,2]
[337737756,1726001235416,-166.666666,0.00036024,2]
[337737757,1726001235437,-163.449894,0.00036251,2]
[337737758,1726001235460,-163.449894,0.00036625,2]
[337737759,1726001235481,-166.666666,0.0003698,2]
[337737760,1726001235502,-163.449894,0.00036999,2]
[337737761,1726001235522,-465.0,0.00037239,2]
[337737762,1726001235543,-163.449894,0.00037373,2]
[337737763,1726001235564,-1100.0,0.0003763,7]
[337737764,1726001235586,-160.0,0.00037698,3]
[337737765,1726001235607,-163.449894,0.00037747,2]
[337737766,1726001235627,-700.0,0.0003784,7]
[337737767,1726001235649,-500.0,0.0003786,7]
[337737768,1726001235672,-153.07231703,0.00037864,23]
[337737769,1726001235693,-545.0,0.00037911,7]
[337737770,1726001235715,-128.18386925,0.00037936,2]
[337737771,1726001254107,-800.31122323,0.00037746,7]
[337737774,1726001400536,163.310797,0.00017808,2]
[337737775,1726001400950,163.310797,0.00026976,2]
[337737776,1726001428409,150.0,0.00032471,2]
[337737777,1726001429023,150.0,0.00035471,2]
[337737834,1726001432648,-163.310797,0.00036143,2]
[337737835,1726001432657,-161.555281,0.00036498,2]
[337737836,1726001432667,-42.16844961,0.00037746,7]
[337737837,1726001434707,150.0,0.00032471,2]
[337737838,1726001435235,150.0,0.00035471,2]
[337737853,1726001438119,-81.51510857,0.00037746,7]
[337737854,1726001438132,-700.0,0.00037753,7]
[337737855,1726001438144,-1100.0,0.00037854,7]
[337737856,1726001438154,-900.0,0.00037882,7]
[337737857,1726001438164,-38.48279675,0.00037936,2]
[337737858,1726001438174,-344.63337699,0.00038,10]
[337737859,1726001438183,-1100.0,0.00038034,7]
[337737860,1726001438192,-1100.0,0.00038109,7]
[337737861,1726001438202,-1100.0,0.00038129,7]
[337737862,1726001438211,-700.0,0.00038145,7]
[337737863,1726001438220,-900.0,0.00038167,7]
[337737864,1726001438230,-700.0,0.00038329,7]
[337737865,1726001438239,-500.0,0.00038442,7]
[337737866,1726001438249,-150.0,0.00038471,2]
[337737867,1726001438258,-700.0,0.00038486,7]
[337737868,1726001438268,-700.0,0.00038601,7]
[337737869,1726001438277,-500.0,0.00038687,7]
[337737870,1726001438287,-900.0,0.00038699,7]
[337737871,1726001438296,-153.55,0.000388,31]
[337737872,1726001438305,-153.55,0.000388,31]
[337737873,1726001438315,-153.55,0.000388,31]
[337737874,1726001438324,-153.55,0.000388,31]
[337737875,1726001438333,-153.55,0.000388,31]
[337737876,1726001438343,-153.55,0.000388,31]
[337737877,1726001438352,-153.55,0.000388,31]
[337737878,1726001438361,-153.55,0.000388,31]
[337737879,1726001438371,-900.0,0.00038892,7]
[337737880,1726001438380,-166.666666,0.00038892,2]
[337737881,1726001438389,-500.0,0.00038901,7]
[337737882,1726001438398,-600.0,0.00038904,3]
[337737883,1726001438407,-596.09775625,0.00038904,3]
[337737884,1726001438416,-153.0,0.00038904,2]
[337737885,1726001438425,-153.0,0.00038904,2]
[337737886,1726001438434,-153.0,0.00038904,2]
[337737887,1726001438443,-500.45446727,0.00038973,5]
[337737888,1726001438453,-255.41687523,0.00038973,5]
[337737889,1726001438462,-442.76158302,0.00038973,5]
[337737890,1726001438472,-2136.18509131,0.00038979,31]
[337737891,1726001438483,-512.05307909,0.00038979,31]
[337737892,1726001438494,-642.29571818,0.00038979,31]
[337737903,1726001440294,-907.67165249,0.00038979,31]
[337737928,1726001449974,150.0,0.00032567,2]
[337737963,1726002426100,-163.310797,0.00017808,2]
[337737964,1726002426121,-163.310797,0.00029726,2]
[337737965,1726002426141,-465.33164119,0.00033852,2]
[337737966,1726002426164,-166.666666,0.00034546,2]
[337737967,1726002426187,-3000.0,0.0003508,2]
[337737968,1726002426209,-153.58,0.000354,31]
[337737969,1726002426233,-153.58,0.000354,31]
[337737970,1726002426256,-153.58,0.000354,31]
[337737971,1726002426278,-1798.71344066,0.00035717,2]
[337737972,1726002438237,-206.12787587,0.00035717,2]
[337737975,1726002550132,-163.310797,0.00017808,2]
[337737976,1726002550153,-163.310797,0.00032705,2]
[337738034,1726002632162,-516.1327671,0.00035717,2]
[337738036,1726002632174,-4407.26722699,0.00035717,2]
[337738084,1726002638159,-373.26531574,0.00035717,2]
[337738085,1726002638215,-4410.44406444,0.00035717,2]
[337738086,1726002638224,-184.084065,0.00036272,2]
[337738087,1726002638235,-500.0,0.00037623,7]
[337738088,1726002638245,-800.0,0.00037671,7]
[337738089,1726002638256,-240.57272168,0.00037748,7]
[337738090,1726002638269,-659.42727832,0.00037748,7]
[337738091,1726002638279,-600.0,0.00037779,7]
[337738092,1726002638289,-153.07231703,0.00037864,23]
[337738093,1726002638298,-429.50338815,0.00037891,7]
[337738105,1726002640282,-170.49661185,0.00037891,7]
[337738106,1726002640293,-541.01042613,0.00038062,7]
[337738107,1726002640310,-58.98957387,0.00038062,7]
[337738108,1726002640320,-900.0,0.00038074,7]
[337738109,1726002640331,-900.0,0.00038098,7]
[337738110,1726002640341,-500.0,0.00038193,7]
[337738111,1726002640350,-500.0,0.00038295,7]
[337738112,1726002640360,-800.0,0.00038346,7]
[337738113,1726002640370,-800.0,0.00038385,7]
[337738114,1726002640379,-153.58,0.000388,31]
[337738115,1726002640389,-153.58,0.000388,31]
[337738116,1726002640403,-153.58,0.000388,31]
[337738117,1726002640414,-153.58,0.000388,31]
[337738118,1726002640424,-153.58,0.000388,31]
[337738119,1726002640434,-153.58,0.000388,31]
[337738120,1726002640444,-1000.0,0.00038866,2]
[337738121,1726002640454,-2449.83102284,0.00038886,2]
[337738122,1726002640464,-153.0,0.00038925,2]
[337738123,1726002640475,-10955.87514999,0.00038927,31]
[337738130,1726002643099,-6027.63135529,0.00038927,31]
[337738146,1726002646240,-798.8343542,0.00038927,31]
[337738153,1726002646298,-423.81688255,0.00038927,31]
[337738155,1726002646310,-3356.43838842,0.00038927,31]
[337738157,1726002646319,-500.0,0.00038932,15]
[337738159,1726002646330,-500.0,0.00038932,15]
[337738161,1726002646340,-500.0,0.00038932,15]
[337738163,1726002646350,-500.0,0.00038932,7]
[337738165,1726002646360,-500.0,0.00038932,15]
[337738167,1726002646370,-500.0,0.00038932,15]
[337738169,1726002646379,-500.0,0.00038932,15]
[337738171,1726002646389,-500.0,0.00038932,15]
[337738174,1726002646399,-555.4432562,0.00038932,15]
[337738176,1726002646408,-500.0,0.00038932,15]
[337738178,1726002646418,-500.0,0.00038932,15]
[337738180,1726002646428,-186.22114658,0.00038932,15]
[337738182,1726002646438,-500.0,0.00038932,7]
[337738184,1726002646447,-500.0,0.00038932,15]
[337738186,1726002646458,-500.0,0.00038932,15]
[337738188,1726002646469,-500.0,0.00038932,15]
[337738190,1726002646478,-500.0,0.00038932,7]
[337738192,1726002646488,-500.0,0.00038932,15]
[337738194,1726002646498,-500.0,0.00038932,15]
[337738196,1726002646508,-500.0,0.00038932,7]
[337738198,1726002646518,-500.0,0.00038932,15]
[337738200,1726002646530,-300.0,0.00038932,15]
[337738202,1726002646541,-500.0,0.00038932,15]
[337738203,1726002646550,-52.6472088,0.00038932,15]
[337738204,1726002646563,-447.3527912,0.00038932,15]
[337738205,1726002646574,-249.32497875,0.00038932,7]
[337738206,1726002646583,-360.69193505,0.00038932,15]
[337738207,1726002646595,-139.30806495,0.00038932,15]
[337738208,1726002646605,-500.0,0.00038932,15]
[337738209,1726002646615,-500.0,0.00038932,15]
[337738210,1726002646625,-500.0,0.00038932,15]
[337738211,1726002646635,-500.0,0.00038932,15]
[337738212,1726002646644,-500.0,0.00038932,15]
[337738213,1726002646655,-500.0,0.00038932,15]
[337738214,1726002646665,-500.0,0.00038932,15]
[337738215,1726002646675,-500.0,0.00038932,15]
[337738216,1726002646685,-242.38059238,0.00038932,15]
[337738349,1726003545262,-163.310797,0.00017808,2]
[337738350,1726003545286,-153.59,0.000354,31]
[337738351,1726003545309,-153.59,0.000354,31]
[337738352,1726003545329,-161.555281,0.00035788,2]
[337738353,1726003545349,-184.084066,0.00036069,2]
[337738354,1726003545370,-400.0,0.00036115,2]
[337738355,1726003545391,-6664.4193852,0.00036116,2]
[337738356,1726003545414,-166.666666,0.00036353,2]
[337738357,1726003545437,-166.666666,0.00037301,2]
[337738358,1726003545458,-700.0,0.00037556,7]
[337738359,1726003545480,-600.0,0.00037617,7]
[337738360,1726003545501,-163.310797,0.00037671,2]
[337738361,1726003545521,-800.0,0.00037846,7]
[337738362,1726003545542,-153.07231703,0.00037864,23]
[337738363,1726003545565,-800.0,0.00037965,7]
[337738364,1726003545586,-800.0,0.00037993,7]
[337738365,1726003545607,-297.58185458,0.00038051,2]
[337738366,1726003545627,-500.0,0.00038076,7]
[337738367,1726003545649,-800.0,0.00038086,7]
[337738368,1726003545674,-500.0,0.00038132,7]
[337738369,1726003545695,-259.0,0.00038187,2]
[337738370,1726003545716,-600.0,0.00038187,7]
[337738371,1726003545741,-166.666666,0.00038248,2]
[337738372,1726003545763,-700.0,0.0003826,7]
[337738373,1726003545787,-153.59,0.000383,31]
[337738374,1726003545811,-153.59,0.000383,31]
[337738375,1726003545835,-153.59,0.000383,31]
[337738376,1726003545859,-153.59,0.000383,31]
[337738377,1726003545883,-700.0,0.00038383,7]
[337738378,1726003545904,-442.3558862,0.00038411,2]
[337738379,1726003545925,-153.0,0.00038411,2]
[337738380,1726003545949,-500.0,0.00038512,7]
[337738381,1726003545972,-600.0,0.00038609,7]
[337738382,1726003545993,-800.0,0.00038704,7]
[337738383,1726003546014,-604.73019962,0.00038737,32]
[337738384,1726003546038,-1591.53915582,0.00038778,2]
[337738385,1726003546063,-1000.0,0.00038799,2]
[337738386,1726003546085,-800.0,0.00038816,7]
[337738387,1726003546106,-700.0,0.0003882,7]
[337738388,1726003546127,-2204.84792061,0.00038822,2]
[337738389,1726003546148,-30306.11,0.00038869,3]
[337738390,1726003546170,-547.53,0.0003887,3]
[337738391,1726003546192,-500.0,0.00038873,3]
[337738392,1726003546213,-182.5,0.00038878,3]
[337738393,1726003546236,-25255.09,0.00038878,3]
[337738394,1726003546257,-151.0,0.00038878,14]
[337738395,1726003546278,-277.041058,0.00038878,14]
[337738396,1726003546299,-151.0,0.00038878,14]
[337738397,1726003546321,-240.666306,0.00038878,14]
[337738398,1726003546342,-227.838053,0.00038878,14]
[337738399,1726003546364,-151.0,0.00038878,14]
[337738400,1726003546385,-240.666306,0.00038878,14]
[337738401,1726003546407,-227.838053,0.00038878,14]
[337738402,1726003546429,-501.899553,0.00038878,14]
[337738403,1726003546451,-501.899553,0.00038878,14]
[337738404,1726003546479,-249.92499764,0.00038879,7]
[337738405,1726003546501,-500.0,0.00038879,15]
[337738406,1726003546523,-500.0,0.00038879,15]
[337738407,1726003546544,-200.0,0.00038879,15]
[337738408,1726003546570,-500.0,0.00038879,15]
[337738409,1726003546606,-500.0,0.00038879,15]
[337738410,1726003546630,-500.0,0.00038879,15]
[337738411,1726003546655,-500.0,0.00038879,15]
[337738412,1726003546677,-500.0,0.00038879,15]
[337738413,1726003546699,-500.0,0.00038879,15]
[337738414,1726003546722,-500.0,0.00038879,15]
[337738415,1726003546745,-183.78288455,0.00038879,15]
[337738416,1726003546768,-500.0,0.00038879,15]
[337738417,1726003546792,-500.0,0.00038879,15]
[337738418,1726003546815,-500.0,0.00038879,15]
[337738419,1726003546838,-500.0,0.00038879,15]
[337738420,1726003546860,-500.0,0.00038879,15]
[337738421,1726003546882,-500.0,0.00038879,15]
[337738422,1726003546904,-500.0,0.00038879,15]
[337738423,1726003546927,-500.0,0.00038879,15]
[337738424,1726003546949,-500.0,0.00038879,15]
[337738425,1726003546977,-500.0,0.00038879,15]
[337738426,1726003547000,-500.0,0.00038879,15]
[337738427,1726003547021,-494.55254293,0.00038879,15]
[337738428,1726003547044,-500.0,0.00038879,15]
[337738429,1726003547066,-500.0,0.00038879,15]
[337738430,1726003547089,-500.0,0.00038879,15]
[337738431,1726003547112,-500.0,0.00038879,15]
[337738432,1726003547147,-500.0,0.00038879,15]
[337738433,1726003547197,-500.0,0.00038879,15]
[337738434,1726003547272,-500.0,0.00038879,15]
[337738435,1726003547317,-500.0,0.00038879,15]
[337738436,1726003547339,-500.0,0.00038879,15]
[337738437,1726003547361,-500.0,0.00038879,15]
[337738438,1726003547385,-500.0,0.00038879,15]
[337738439,1726003547408,-500.0,0.00038879,15]
[337738440,1726003547431,-500.0,0.00038879,15]
[337738441,1726003547457,-500.0,0.00038879,15]
[337738442,1726003547483,-500.0,0.00038879,15]
[337738443,1726003547508,-500.0,0.00038879,15]
[337738444,1726003547533,-500.0,0.00038879,15]
[337738445,1726003547807,-500.0,0.00038879,15]
[337738446,1726003547830,-500.0,0.00038879,15]
[337738447,1726003547854,-500.0,0.00038879,15]
[337738448,1726003547876,-500.0,0.00038879,15]
[337738449,1726003547898,-500.0,0.00038879,15]
[337738450,1726003547919,-500.0,0.00038879,15]
[337738451,1726003547940,-500.0,0.00038879,15]
[337738452,1726003547961,-500.0,0.00038879,15]
[337738453,1726003547987,-500.0,0.00038879,15]
[337738454,1726003548008,-500.0,0.00038879,15]
[337738455,1726003548030,-300.0,0.00038879,15]
[337738456,1726003548052,-599.865,0.00038879,15]
[337738457,1726003548074,-500.0,0.00038879,15]
[337738458,1726003548097,-500.0,0.00038879,15]
[337738459,1726003548120,-500.0,0.00038879,15]
[337738460,1726003548142,-500.0,0.00038879,15]
[337738461,1726003548165,-500.0,0.00038879,15]
[337738462,1726003548188,-500.0,0.00038879,15]
[337738463,1726003548211,-500.0,0.00038879,15]
[337738464,1726003548236,-500.0,0.00038879,15]
[337738465,1726003548258,-500.0,0.00038879,15]
[337738466,1726003548280,-500.0,0.00038879,15]
[337738467,1726003548302,-151.0,0.0003888,14]
[337738468,1726003548324,-251.928547,0.0003888,14]
[337738469,1726003548346,-251.928547,0.0003888,14]
[337738470,1726003548367,-170.340205,0.0003888,14]
[337738471,1726003548389,-170.340205,0.0003888,14]
[337738472,1726003548410,-500.0,0.00038883,7]
[337738473,1726003548431,-10781.29806522,0.00038888,31]
[337738474,1726003548452,-154.206267,0.00038888,14]
[337738475,1726003548475,-151.0,0.00038888,14]
[337738476,1726003548497,-240.666306,0.00038888,14]
[337738477,1726003548519,-240.666306,0.00038888,14]
[337738478,1726003548541,-151.0,0.00038888,14]
[337738479,1726003548564,-227.838053,0.00038888,14]
[337738480,1726003548588,-227.838053,0.00038888,14]
[337738481,1726003548611,-240.666306,0.00038888,14]
[337738482,1726003548633,-240.666306,0.00038888,14]
[337738483,1726003548655,-151.0,0.00038888,14]
[337738484,1726003548678,-151.0,0.00038888,14]
[337738485,1726003548700,-227.838053,0.00038888,14]
[337738486,1726003548724,-227.838053,0.00038888,14]
[337738487,1726003548746,-501.899553,0.00038888,14]
[337738488,1726003548768,-151.0,0.00038888,14]
[337738489,1726003548792,-146.0591616,0.00038888,14]
[337738513,1726003630131,-1000.0,0.00038799,2]
[337738514,1726003630152,-151.0,0.00038878,14]
[337738515,1726003630174,-151.0,0.00038878,14]
[337738516,1726003630195,-151.0,0.00038879,14]
[337738517,1726003630216,-151.0,0.00038879,14]
[337738518,1726003630238,-151.0,0.00038879,14]
[337738519,1726003630258,-151.0,0.00038879,14]
[337738520,1726003630278,-210.343589,0.00038879,14]
[337738521,1726003630303,-259.0,0.00038888,2]
[337738522,1726003630324,-4.9408384,0.00038888,14]
[337738523,1726003630344,-501.899553,0.00038888,14]
[337738524,1726003630365,-151.0,0.00038888,14]
[337738525,1726003630386,-501.899553,0.00038888,14]
[337738526,1726003630408,-501.899553,0.00038888,14]
[337738527,1726003630428,-151.0,0.00038888,14]
[337738528,1726003630448,-257.474114,0.00038888,14]
[337738529,1726003630469,-449.849696,0.00038888,14]
[337738530,1726003630490,-449.849696,0.00038888,14]
[337738531,1726003630510,-449.849696,0.00038888,14]
[337738532,1726003630530,-1592.433786,0.00038888,14]
[337738533,1726003630551,-1592.433786,0.00038888,14]
[337738534,1726003630571,-1592.433786,0.00038888,14]
[337738535,1726003630596,-449.849696,0.00038888,14]
[337738536,1726003630618,-449.849696,0.00038888,14]
[337738537,1726003630639,-449.849696,0.00038888,14]
[337738538,1726003630663,-1592.433786,0.00038888,14]
[337738539,1726003630684,-1592.433786,0.00038888,14]
[337738540,1726003630705,-1592.433786,0.00038888,14]
[337738541,1726003630726,-151.0,0.00038888,14]
[337738542,1726003630747,-151.0,0.00038888,14]
[337738543,1726003630768,-293.351434,0.00038888,14]
[337738544,1726003630792,-151.0,0.00038888,14]
[337738545,1726003630813,-151.0,0.00038888,14]
[337738546,1726003630835,-151.0,0.00038888,14]
[337738547,1726003630856,-151.0,0.00038888,14]
[337738548,1726003630877,-522.4806656,0.00038888,14]
[337738549,1726003644090,-500.0,0.00038457,7]
[337738550,1726003644111,-500.0,0.00038679,7]
[337738551,1726003644132,-17538.26,0.00038879,3]
[337738552,1726003644153,-9477.5193344,0.00038888,14]
[337738553,1726003644175,-10000.0,0.00038888,14]
[337738554,1726003644195,-10000.0,0.00038888,14]
[337738555,1726003644216,-10000.0,0.00038888,14]
[337738556,1726003644238,-10000.0,0.00038888,14]
[337738557,1726003644258,-10000.0,0.00038888,14]
[337738558,1726003644280,-10000.0,0.00038888,14]
[337738559,1726003644302,-5573.23497337,0.00038888,14]
[337738560,1726003654109,-500.0,0.00037626,7]
[337738561,1726003654132,-500.0,0.00037636,7]
[337738562,1726003654154,-500.0,0.00037742,7]
[337738563,1726003654177,-500.0,0.0003785,7]
[337738564,1726003654199,-500.0,0.0003805,7]
[337738565,1726003654221,-500.0,0.00038137,7]
[337738566,1726003654244,-700.0,0.00038181,7]
[337738567,1726003654265,-500.0,0.0003852,7]
[337738568,1726003654288,-500.0,0.00038609,7]
[337738569,1726003654315,-14615.21,0.0003888,3]
[337738570,1726003654337,-4426.76502663,0.00038888,14]
[337738571,1726003654358,-10000.0,0.00038888,14]
[337738572,1726003654379,-369.549864,0.00038888,14]
[337738573,1726003654403,-187.707032,0.00038888,14]
[337738574,1726003654425,-187.707032,0.00038888,14]
[337738575,1726003654447,-187.707032,0.00038888,14]
[337738576,1726003654469,-187.707032,0.00038888,14]
[337738577,1726003654490,-187.707032,0.00038888,14]
[337738578,1726003654512,-187.707032,0.00038888,14]
[337738579,1726003654535,-863.533871,0.00038888,14]
[337738580,1726003654558,-863.533871,0.00038888,14]
[337738581,1726003654582,-863.533871,0.00038888,14]
[337738582,1726003654607,-167.956076,0.00038889,14]
[337738583,1726003654630,-251.928547,0.00038889,14]
[337738584,1726003654653,-251.928547,0.00038889,14]
[337738585,1726003654675,-170.340205,0.00038889,14]
[337738586,1726003654699,-170.340205,0.00038889,14]
[337738587,1726003654722,-170.340205,0.00038889,14]
[337738588,1726003654745,-170.340205,0.00038889,14]
[337738589,1726003654766,-151.0,0.00038889,14]
[337738590,1726003654789,-151.0,0.00038889,14]
[337738591,1726003654811,-151.0,0.00038889,14]
[337738592,1726003654834,-151.0,0.00038889,14]
[337738593,1726003654855,-151.0,0.00038889,7]
[337738594,1726003654877,-241.673742,0.00038889,7]
[337738595,1726003654899,-374.073339,0.00038889,14]
[337738596,1726003654922,-374.073339,0.00038889,14]
[337738597,1726003654943,-374.073339,0.00038889,14]
[337738598,1726003654965,-374.073339,0.00038889,14]
[337738599,1726003654986,-374.073339,0.00038889,14]
[337738600,1726003655007,-374.073339,0.00038889,14]
[337738601,1726003655029,-374.073339,0.00038889,14]
[337738602,1726003655052,-374.073339,0.00038889,14]
[337738603,1726003655073,-240.666306,0.00038889,14]
[337738604,1726003655093,-227.838053,0.00038889,14]
[337738605,1726003655113,-240.666306,0.00038889,14]
[337738606,1726003655134,-151.0,0.00038889,14]
[337738607,1726003655154,-227.838053,0.00038889,14]
[337738608,1726003655174,-501.899553,0.00038889,14]
[337738609,1726003655194,-151.0,0.00038889,14]
[337738610,1726003655214,-501.899553,0.00038889,14]